{"text_format":"1","workbook":"xlsx","n_sheets":3,"sheets":["Résumé entretien collab","salarié","salarié (2)"],"not_rendered":{"charts":0,"images":1,"macros":1,"external_links":0,"defined_names":8,"comments":0,"pivot_tables":0},"unopened":[],"bounds":{"document_bytes":16777216,"sheet_cells":100000,"rows_first":2000,"rows_last":500,"rows_between":2000,"halvings":0,"cell_chars":16384,"cell_head_chars":4096},"cells_cut":0,"cells_raw":0,"read":"whole","date_system":"1900"}

{"sheet":"Résumé entretien collab","index":0,"n_rows":4,"n_cols":14,"rows_kept":4,"cut":false,"hidden":false,"merged":[[0,3,1,3],[0,2,1,2],[0,1,1,1],[0,0,1,0],[0,13,1,13],[0,7,0,12],[0,6,1,6],[0,5,1,5],[0,4,1,4]]}
["CENTRE DE RATTACHEMENT","MANAGER","DATE DE L'ENTRETIEN","NOM","PRENOM","Sollicite entretien condition de T en TT","Demande de réétudier orga de TT mise en œuvre","Plan de développement individuel des compétences",null,null,null,null,null,"Souhaits d'évolution professionnelle dans l'année qui vient"]
[null,null,null,null,null,null,null,"PRIORITE","Objectif de compétence","ACTION","PLANIFICATION","DUREE","COMMENTAIRE"]
[{"$f":"salarié!H14","v":"SIEGE"},{"$f":"salarié!H16","v":"BOSS"},{"$f":"salarié!D17","v":"2016-09-05"},{"$f":"salarié!D12","v":"DOE"},{"$f":"NOMSRE","v":"John"}]
[{"$f":"'salarié (2)'!H14","v":"SIEGE"},{"$f":"'salarié (2)'!H16","v":"BOSS"},{"$f":"'salarié (2)'!D17","v":"2016-09-05"},{"$f":"'salarié (2)'!D12","v":"FA"},{"$f":"'salarié (2)'!NOMSRE","v":"Lasi"}]

{"sheet":"salarié","index":1,"n_rows":173,"n_cols":9,"rows_kept":173,"cut":false,"hidden":false,"merged":[[172,1,172,6],[152,1,152,6],[153,1,153,6],[154,1,154,6],[155,1,155,6],[168,5,169,6],[171,1,171,6],[151,1,151,6],[128,1,128,6],[129,1,129,6],[139,1,139,6],[140,1,140,6],[141,1,141,6],[142,1,142,6],[143,1,143,6],[144,1,144,6],[145,1,145,6],[149,1,149,6],[150,1,150,6],[127,1,127,6],[110,4,110,6],[114,5,114,6],[115,5,115,6],[116,5,116,6],[117,5,117,6],[118,5,118,6],[119,5,119,6],[120,5,120,6],[124,1,124,6],[125,1,125,6],[126,1,126,6],[109,4,109,6],[97,1,97,2],[97,3,97,4],[97,5,97,6],[98,1,98,2],[98,3,98,4],[98,5,98,6],[104,4,104,6],[105,4,105,6],[106,4,106,6],[107,4,107,6],[108,4,108,6],[95,1,95,2],[95,3,95,4],[95,5,95,6],[96,1,96,2],[96,3,96,4],[96,5,96,6],[93,1,93,2],[93,3,93,4],[93,5,93,6],[94,1,94,2],[94,3,94,4],[94,5,94,6],[91,1,91,2],[91,3,91,4],[91,5,91,6],[92,1,92,2],[92,3,92,4],[92,5,92,6],[64,3,64,6],[78,5,78,6],[88,4,88,6],[90,1,90,2],[90,3,90,4],[90,5,90,6],[20,1,20,7],[13,7,13,8],[14,7,14,8],[15,1,15,3],[15,7,15,8],[16,7,16,8]]}
[]
[]
[]
[]
[]
[null,null,null,null,"ENTRETIEN INDIVIDUEL PROFESSIONNEL"]
[]
[]
[]
["Identification "]
[]
[null,"Nom Collaborateur : ",null,"DOE",null,"Période de référence, du  :"]
[null,"Prénom Collaborateur : ",null,"John",null,"au :"]
[null,"Civilité :",null,"Monsieur",null,"Centre de rattachement : ",null,"SIEGE"]
[null,"Intitulé de la fonction : ",null,null,null,"complément de rattachement :"]
[null,"Chargée de Production",null,null,null,"Nom Manager :",null,"BOSS"]
[null,"Date anciennté",null,"2016-09-05",null,"Prénom Manager :"]
[]
[]
["Type d'entretien"]
[null,"Entretien professionnel périodique"]
[]
[]
[]
[]
[]
[]
[]
[]
[]
[]
[]
[]
[]
[]
[]
[]
[]
[]
[]
[]
[]
[]
[]
[]
[]
[]
[]
[]
["I) Etat des lieux récapitulatif du parcours professionnel"]
[]
["Formation initiale"]
["Liste des diplômes obtenus / formations suivies (du + élevé ou - elevé)"]
["No","Spécialité","Niveau","Organisme","Lieux / Pays","Obtention","Date"]
[null,"Licence Pro Management","Bac+3 (Licence, licence professionnelle…) - Niveau 6 (anciennement II)","Paris 2","Paris","Validé","2016-09-01"]
[null,"BTS Communication","Bac+2 (DEUG, BTS, DUT, DEUST…) - Niveau 5 (anciennement III)","Lyon 3","Lyon","Validé","2014-09-01"]
[]
[]
[]
[]
[]
[]
[]
["Formation continue"]
["Liste des formations continues suivies ",null,null,"[ ] Depuis la formation initiale, s'il s'agit du premier état des lieux, ou,\n[ ] Sur la période concernée uniquement, si l'état des lieux a déjà été fait."]
["No","Spécialité","Volume\n(heures)","Organisme","Type","Certification \n(si applicable)","Date"]
[null,"Certification Orthographe",42,"Voltaire","Formation externe",null,"2018-02-07"]
[]
[]
[]
[]
[]
[]
[]
[{"$f":"CONCATENATE($D$12,\" \",NOMSRE)","v":"DOE John"}]
[]
["Progression professionnelle"]
[]
["Liste des fonctions tenues au cours de votre carrière au sein d'Axess ",null,null,null,null,"(+ de l'actuelle à la plus ancienne, si plusieurs fonctions tenues)"]
["No","Intitulé","Durée \n(années)","Centre expertise","Manager(s)","Date début","Date fin"]
[]
[]
[]
[]
[]
[]
[]
[]
["Progression professionnelle dans l'emploi",null,null,null,"Nouvelles responsabilités tenues et/ou missions exercées dans son poste actuel"]
[]
["No"]
["1."]
["2."]
["3."]
["4."]
["5."]
[]
[]
[]
[{"$f":"CONCATENATE($D$12,\" \",NOMSRE)","v":"DOE John"}]
["II) Perspective d'évolution professionnelle "]
[]
[null,"Bilan des compétences acquises ou à développer"]
[]
[null,"Description","Type","Maîtrise","Commentaires"]
[]
[]
[]
[]
[]
[]
[]
[null,"Plan de développement individuel des compétences"]
[]
["Prio","Objectif de compétence","Action","Planification","Durée\n(heures)","Commentaires"]
["1."]
["2."]
["3."]
[]
[]
[]
[]
[null,"Souhaits d'évolution professionnelle"]
[]
["Choix","Dans l'année qui vient, souhaitez-vous :"]
[]
[]
[]
[]
[]
[null,"A compléter par des commentaires dans les zones prévues à cet effet en page suivante"]
[]
[null,"Suivi de l'organisation en Télétravail"]
[null,null,null,null,null,null,null,null,"Réponse"]
[null,{"$f":"IF(D14=\"Monsieur\",\"Le collaborateur sollicite-t-il un entretien spécifique concernant ses conditions de travail en Télétravail ?\",IF(D14=\"Madame\",\"La collaboratrice sollicite-t-elle un entretien spécifique concernant ses conditions de travail en Télétravail ?\",\"Le collaborateur sollicite-t-il un entretien spécifique concernant ses conditions de travail en Télétravail ?\"))","v":"Le collaborateur sollicite-t-il un entretien spécifique concernant ses conditions de travail en Télétravail ?"}]
[null,"Le.la Manager demande-t-il à réétudier l'organisation de Télétravail mise en œuvre ?"]
[{"$f":"CONCATENATE($D$12,\" \",NOMSRE)","v":"DOE John"}]
[]
[null,{"$f":"IF(D14=\"Monsieur\",\"Commentaires du Collaborateur :\",IF(D14=\"Madame\",\"Commentaires de la Collaboratrice :\",\"Commentaires Collaborateur :\"))","v":"Commentaires du Collaborateur :"}]
[]
[]
[]
[]
[]
[]
[]
[]
[]
[null,"Commentaires Manager :"]
[]
[]
[]
[]
[]
[]
[]
[]
["III) Validation :"]
[null,{"$f":"IF(D14=\"Monsieur\",\"Le collaborateur confirme avoir pris connaissance des informations relatives :\",IF(D14=\"Madame\",\"La collaboratrice confirme avoir pris connaissance des informations relatives :\",\"Le collaborateur confirme avoir pris connaissance des informations relatives :\"))","v":"Le collaborateur confirme avoir pris connaissance des informations relatives :"}]
[null,". à la Validation des Acquis de l’Expérience (VAE)"]
[null,". au Compte Personnel de Formation (CPF)"]
[null,". au Conseil en Evolution Professionnelle (CEP)"]
[]
[]
[null,null,null,null,null,"Date :"]
[]
[]
[null,{"$f":"IF(D14=\"Monsieur\",\"Signature du Collaborateur :\",IF(D14=\"Madame\",\"Signature de la Collaboratrice :\",\"Signature Collaborateur :\"))","v":"Signature du Collaborateur :"},null,null,null,"Signature Manager :"]
[]
[]
[]
[null,"Document établi en deux exemplaires, pour chacun des participants à l'entretien"]
[null,"Une copie est transmise au Service Ressources Humaines"]

{"sheet":"salarié (2)","index":2,"n_rows":173,"n_cols":8,"rows_kept":173,"cut":false,"hidden":false,"merged":[[172,1,172,6],[152,1,152,6],[153,1,153,6],[154,1,154,6],[155,1,155,6],[168,5,169,6],[171,1,171,6],[143,1,143,6],[144,1,144,6],[145,1,145,6],[149,1,149,6],[150,1,150,6],[151,1,151,6],[128,1,128,6],[129,1,129,6],[139,1,139,6],[140,1,140,6],[141,1,141,6],[142,1,142,6],[119,5,119,6],[120,5,120,6],[124,1,124,6],[125,1,125,6],[126,1,126,6],[127,1,127,6],[110,4,110,6],[114,5,114,6],[115,5,115,6],[116,5,116,6],[117,5,117,6],[118,5,118,6],[104,4,104,6],[105,4,105,6],[106,4,106,6],[107,4,107,6],[108,4,108,6],[109,4,109,6],[97,1,97,2],[97,3,97,4],[97,5,97,6],[98,1,98,2],[98,3,98,4],[98,5,98,6],[95,1,95,2],[95,3,95,4],[95,5,95,6],[96,1,96,2],[96,3,96,4],[96,5,96,6],[93,1,93,2],[93,3,93,4],[93,5,93,6],[94,1,94,2],[94,3,94,4],[94,5,94,6],[91,1,91,2],[91,3,91,4],[91,5,91,6],[92,1,92,2],[92,3,92,4],[92,5,92,6],[64,3,64,6],[78,5,78,6],[88,4,88,6],[90,1,90,2],[90,3,90,4],[90,5,90,6],[15,1,15,3],[20,1,20,7]]}
[]
[]
[]
[]
[]
[null,null,null,null,"ENTRETIEN INDIVIDUEL PROFESSIONNEL"]
[]
[]
[]
["Identification "]
[]
[null,"Nom Collaborateur : ",null,"FA",null,"Période de référence, du  :"]
[null,"Prénom Collaborateur : ",null,"Lasi",null,"au :"]
[null,"Civilité :",null,"Madame",null,"Centre de rattachement : ",null,"SIEGE"]
[null,"Intitulé de la fonction : ",null,null,null,"complément de rattachement :"]
[null,"Chargée de Production",null,null,null,"Nom Manager :",null,"BOSS"]
[null,"Date anciennté",null,"2016-09-05",null,"Prénom Manager :"]
[]
[]
["Type d'entretien"]
[null,"Entretien professionnel périodique"]
[]
[]
[]
[]
[]
[]
[]
[]
[]
[]
[]
[]
[]
[]
[]
[]
[]
[]
[]
[]
[]
[]
[]
[]
[]
[]
[]
[]
["I) Etat des lieux récapitulatif du parcours professionnel"]
[]
["Formation initiale"]
["Liste des diplômes obtenus / formations suivies (du + élevé ou - elevé)"]
["No","Spécialité","Niveau","Organisme","Lieux / Pays","Obtention","Date"]
[null,"Licence Pro Management","Bac+3 (Licence, licence professionnelle…) - Niveau 6 (anciennement II)","Paris 2","Paris","Validé","2016-09-01"]
[null,"BTS Communication","Bac+2 (DEUG, BTS, DUT, DEUST…) - Niveau 5 (anciennement III)","Lyon 3","Lyon","Validé","2014-09-01"]
[]
[]
[]
[]
[]
[]
[]
["Formation continue"]
["Liste des formations continues suivies ",null,null,"[ ] Depuis la formation initiale, s'il s'agit du premier état des lieux, ou,\n[ ] Sur la période concernée uniquement, si l'état des lieux a déjà été fait."]
["No","Spécialité","Volume\n(heures)","Organisme","Type","Certification \n(si applicable)","Date"]
[null,"Certification Orthographe",42,"Voltaire","Formation externe",null,"2018-02-07"]
[]
[]
[]
[]
[]
[]
[]
[{"$f":"CONCATENATE($D$12,\" \",NOMSRE)","v":"FA Lasi"}]
[]
["Progression professionnelle"]
[]
["Liste des fonctions tenues au cours de votre carrière au sein d'Axess ",null,null,null,null,"(+ de l'actuelle à la plus ancienne, si plusieurs fonctions tenues)"]
["No","Intitulé","Durée \n(années)","Centre expertise","Manager(s)","Date début","Date fin"]
[]
[]
[]
[]
[]
[]
[]
[]
["Progression professionnelle dans l'emploi",null,null,null,"Nouvelles responsabilités tenues et/ou missions exercées dans son poste actuel"]
[]
["No"]
["1."]
["2."]
["3."]
["4."]
["5."]
[]
[]
[]
[{"$f":"CONCATENATE($D$12,\" \",NOMSRE)","v":"FA Lasi"}]
["II) Perspective d'évolution professionnelle "]
[]
[null,"Bilan des compétences acquises ou à développer"]
[]
[null,"Description","Type","Maîtrise","Commentaires"]
[]
[]
[]
[]
[]
[]
[]
[null,"Plan de développement individuel des compétences"]
[]
["Prio","Objectif de compétence","Action","Planification","Durée\n(heures)","Commentaires"]
["1."]
["2."]
["3."]
[]
[]
[]
[]
[null,"Souhaits d'évolution professionnelle"]
[]
["Choix","Dans l'année qui vient, souhaitez-vous :"]
[]
[]
[]
[]
[]
[null,"A compléter par des commentaires dans les zones prévues à cet effet en page suivante"]
[]
[null,"Suivi de l'organisation en Télétravail"]
[]
[null,{"$f":"IF(D14=\"Monsieur\",\"Le collaborateur sollicite-t-il un entretien spécifique concernant ses conditions de travail en Télétravail ?\",IF(D14=\"Madame\",\"La collaboratrice sollicite-t-elle un entretien spécifique concernant ses conditions de travail en Télétravail ?\",\"Le collaborateur sollicite-t-il un entretien spécifique concernant ses conditions de travail en Télétravail ?\"))","v":"La collaboratrice sollicite-t-elle un entretien spécifique concernant ses conditions de travail en Télétravail ?"}]
[null,"Le.la Manager demande-t-il à réétudier l'organisation de Télétravail mise en œuvre ?"]
[{"$f":"CONCATENATE($D$12,\" \",NOMSRE)","v":"FA Lasi"}]
[]
[null,{"$f":"IF(D14=\"Monsieur\",\"Commentaires du Collaborateur :\",IF(D14=\"Madame\",\"Commentaires de la Collaboratrice :\",\"Commentaires Collaborateur :\"))","v":"Commentaires de la Collaboratrice :"}]
[]
[]
[]
[]
[]
[]
[]
[]
[]
[null,"Commentaires Manager :"]
[]
[]
[]
[]
[]
[]
[]
[]
["III) Validation :"]
[null,{"$f":"IF(D14=\"Monsieur\",\"Le collaborateur confirme avoir pris connaissance des informations relatives :\",IF(D14=\"Madame\",\"La collaboratrice confirme avoir pris connaissance des informations relatives :\",\"Le collaborateur confirme avoir pris connaissance des informations relatives :\"))","v":"La collaboratrice confirme avoir pris connaissance des informations relatives :"}]
[null,". à la Validation des Acquis de l’Expérience (VAE)"]
[null,". au Compte Personnel de Formation (CPF)"]
[null,". au Conseil en Evolution Professionnelle (CEP)"]
[]
[]
[null,null,null,null,null,"Date :"]
[]
[]
[null,{"$f":"IF(D14=\"Monsieur\",\"Signature du Collaborateur :\",IF(D14=\"Madame\",\"Signature de la Collaboratrice :\",\"Signature Collaborateur :\"))","v":"Signature de la Collaboratrice :"},null,null,null,"Signature Manager :"]
[]
[]
[]
[null,"Document établi en deux exemplaires, pour chacun des participants à l'entretien"]
[null,"Une copie est transmise au Service Ressources Humaines"]